bitfinex-derivatives/quotes_ETHF0:USTF0_20251013
["timestamp","ask_amount","ask_price","bid_price","bid_amount"]
[1760385712309,4.30996845,4254.8,4254.7,2.03157]
[1760385713806,4.77246845,4254.8,4254.7,2.03157]
[1760385714109,5.40876845,4254.8,4254.7,2.03157]
[1760385714712,1.95648,4254.6,4254.5,0.42268]
[1760385714904,1.95648,4254.6,4254.0,1.4038]
[1760385714905,1.5338,4254.1,4254.0,1.4038]
[1760385715104,1.5338,4254.1,4254.0,2.06754]
[1760385715305,1.5338,4254.1,4254.0,2.53304]
[1760385715804,0.8975,4254.1,4254.0,2.53304]
[1760385716605,0.435,4254.1,4254.0,2.53304]
[1760385718516,0.435,4254.6,4254.5,1.85199]
[1760385718711,0.43755823,4254.8,4254.7,2.03157]
[1760385718912,1.00447671,4254.8,4254.7,2.03157]
[1760385721511,0.56947671,4254.8,4254.7,2.03157]
[1760385722012,1.00447671,4254.8,4254.7,2.03157]
[1760385722414,3.5712672,4254.8,4254.2,0.6935]
[1760385722616,5.16428,4254.6,4254.5,0.42267]
[1760385722806,4.67221848,4254.6,4254.5,2.03157]
[1760385723010,1.46441848,4254.6,4254.5,2.30187]
[1760385723607,0.56691848,4254.6,4254.5,2.54287]
[1760385723813,0.00255823,4254.8,4254.7,2.03157]
[1760385724017,0.56960364,4254.8,4254.7,2.03157]
[1760385724712,0.00255823,4254.8,4254.7,2.03157]
[1760385725918,0.00255823,4254.8,4254.7,2.27257]
[1760385726114,0.43755823,4254.8,4254.7,2.27257]
[1760385726617,0.00255823,4254.8,4254.7,2.03157]
[1760385726816,0.00255823,4254.8,4254.7,5.48037]
[1760385727204,0.83936353,4256.0,4255.9,1.6089]
[1760385727409,1.72229761,4256.0,4255.4,3.2078]
[1760385727616,1.5338,4255.4,4255.3,0.4226]
[1760385727916,0.8975,4255.1,4254.5,0.2703]
[1760385728116,1.53599218,4255.1,4255.0,0.42264]
[1760385728419,0.00219218,4255.1,4255.0,5.50964]
[1760385728616,0.00219218,4255.1,4255.0,2.30184]
[1760385728819,1.53599218,4255.1,4255.0,1.8792]
[1760385729018,3.64499218,4255.1,4255.0,1.8499]
[1760385729225,0.00219218,4255.1,4255.0,2.1202]
[1760385729415,0.00219218,4255.1,4255.0,5.328]
[1760385732720,3.6428,4256.2,4256.1,2.03143]
[1760385732923,4.2064352,4256.2,4256.1,2.27243]
[1760385733113,3.7714352,4256.2,4256.1,2.27243]
[1760385733314,3.6428,4256.2,4256.1,2.27243]
[1760385733515,3.64508158,4256.2,4256.1,2.27243]
[1760385733721,0.89978158,4256.2,4256.1,2.27243]
[1760385734217,1.53608158,4256.2,4256.1,2.27243]
[1760385735319,1.53608158,4256.2,4256.1,2.03143]
[1760385735524,1.53608158,4256.2,4256.1,2.27243]
[1760385735718,0.43728158,4256.2,4256.1,2.27243]
[1760385735921,0.00228158,4256.2,4256.1,2.27243]
[1760385737018,0.00228158,4256.2,4256.1,5.48023]
[1760385739720,0.4157,4257.2,4257.1,1.27922]
[1760385739927,0.853,4257.2,4257.1,1.90982]
[1760385740227,3.89591367,4257.2,4257.1,1.90982]
[1760385740623,3.89784364,4257.2,4257.1,1.91231457]
[1760385743130,0.00192997,4257.2,4257.1,1.91231457]
[1760385743424,1.51232997,4257.2,4257.1,0.42492457]
[1760385743727,7.83433595,4257.2,4257.1,0.00249457]
[1760385744826,8.25675595,4257.2,4257.1,0.00249457]
[1760385749632,8.81872046,4257.2,4257.1,0.00249457]
[1760385750032,8.25675595,4257.2,4257.1,0.00249457]
[1760385750426,8.25675595,4257.2,4257.1,1.91232457]
[1760385750628,7.83433595,4257.2,4257.1,1.91232457]
[1760385750828,8.25675595,4257.2,4257.1,1.91232457]
[1760385751023,8.25675595,4257.2,4257.1,1.06509457]
[1760385751229,8.25675595,4257.2,4257.1,0.00249457]
[1760385751425,8.25675595,4257.2,4257.1,0.42492457]
[1760385751631,5.04895595,4257.2,4257.1,1.48752457]
[1760385751832,3.96913595,4257.2,4257.1,1.91232457]
[1760385752034,4.62653595,4257.2,4257.1,1.91232457]
[1760385752633,3.96913595,4257.2,4257.1,1.91232457]
[1760385752941,3.2078,4257.7,4257.6,1.90978]
[1760385753237,3.2078,4258.7,4257.7,1.4874]
[1760385753437,0.241,4259.2,4259.1,0.42223]
[1760385753738,3.29488728,4259.2,4259.1,1.90963]
[1760385753935,2.54857783,4259.2,4259.1,1.90963]
[1760385754131,0.00236461,4259.2,4259.1,1.90963]
[1760385754332,0.00236461,4259.2,4259.1,2.15063]
[1760385755133,0.00236461,4259.2,4259.1,1.90963]
[1760385755335,1.67551847,4262.0,4260.6,0.6306]
[1760385755529,0.42191,4262.4,4261.9,3.2078]
[1760385755727,0.2717,4262.5,4261.9,3.2078]
[1760385755728,0.2717,4262.0,4261.9,3.2078]
[1760385755932,0.2717,4262.0,4261.0,0.8413]
[1760385755933,0.2717,4262.0,4261.5,0.42199]
[1760385756132,0.241,4261.9,4261.5,0.42199]
[1760385756335,0.241,4261.9,4261.6,0.42198]
[1760385756541,3.33947282,4261.9,4261.5,0.00189233]
[1760385756733,3.33947282,4261.9,4261.7,0.42197]
[1760385757130,3.09847282,4261.9,4261.7,0.42197]
[1760385757343,0.27387301,4262.0,4261.9,0.42195]
[1760385757344,0.00217301,4262.0,4261.9,0.42195]
[1760385757539,0.90057301,4262.0,4261.9,0.42195]
[1760385757738,0.6574,4261.9,4261.5,0.00189233]
[1760385758238,0.6574,4261.7,4261.5,0.00189233]
[1760385758436,0.8984,4261.6,4261.5,0.00189233]
[1760385758645,3.93680369,4261.6,4261.5,0.00189233]
[1760385758942,0.8984,4261.6,4261.5,0.00189233]
[1760385759144,3.93680369,4261.6,4261.5,0.00189233]
[1760385759740,3.93680369,4261.6,4261.5,0.42388233]
[1760385759741,3.69580369,4261.6,4261.5,0.42388233]
[1760385760037,3.03840369,4261.6,4261.5,1.05448233]
[1760385760342,0.93127301,4262.0,4261.9,0.42195]
[1760385760731,4.23180783,4262.0,4261.5,0.42388233]
[1760385760935,4.23180783,4262.0,4261.5,0.00189233]
[1760385761139,0.6574,4261.6,4261.5,0.42388233]
[1760385761337,0.8984,4261.6,4261.5,0.42388233]
[1760385761538,3.94591205,4261.6,4261.5,0.42388233]
[1760385761940,3.94591205,4261.6,4261.5,0.00189233]
[1760385764743,0.6574,4260.9,4260.8,0.42206]
[1760385764935,0.8984,4260.9,4260.8,0.42206]
[1760385765744,0.8984,4260.9,4260.8,0.42508438]
[1760385766135,0.6574,4260.9,4260.8,0.42508438]
[1760385766336,0.2717,4261.5,4261.4,0.422]
[1760385766541,0.5127,4261.5,4261.4,0.422]
[1760385766742,4.35252635,4261.5,4261.4,0.422]
[1760385766936,4.11152635,4261.5,4261.4,0.422]
[1760385767144,4.35252635,4261.5,4261.4,0.422]
[1760385768047,4.11152635,4261.5,4261.4,0.422]
[1760385768244,1.2401,4261.5,4261.4,0.422]
[1760385768452,0.7304,4260.9,4260.8,0.42508438]
[1760385768652,0.9714,4260.9,4260.8,0.00302438]
[1760385768949,3.98746057,4260.9,4260.8,0.00302438]
[1760385769145,3.74646057,4260.9,4260.8,0.00302438]
[1760385769447,3.98746057,4260.9,4260.8,3.21082438]
[1760385769649,3.74646057,4260.9,4260.8,3.21082438]
[1760385769836,3.98746057,4260.9,4260.8,3.21082438]
[1760385770042,3.74646057,4260.9,4260.8,3.88832438]
[1760385770448,3.98746057,4260.9,4260.8,3.88832438]
[1760385770848,3.98746057,4260.9,4260.8,3.21082438]
[1760385773153,3.74646057,4260.9,4260.8,3.21082438]
[1760385773446,3.98746057,4260.9,4260.8,3.21082438]
[1760385774146,3.25706057,4260.9,4260.8,3.88832438]
[1760385774451,3.98746057,4260.9,4260.8,3.21082438]
[1760385775849,4.46736057,4260.9,4260.8,4.17012438]
[1760385776452,4.46736057,4260.9,4260.8,4.59218438]
[1760385776849,1.6917,4260.9,4260.8,4.59218438]
[1760385777053,0.00054,4260.9,4260.8,5.26968438]
[1760385777358,4.1691,4261.8,4261.7,0.42197]
[1760385778048,4.24679897,4261.8,4261.7,2.05877]
[1760385778254,0.241,4261.8,4261.7,2.05877]
[1760385778451,0.00217301,4262.0,4261.7,2.05877]
[1760385778646,4.1911,4262.8,4262.7,0.42187]
[1760385778854,1.2243,4262.8,4262.7,2.05867]
[1760385779054,1e-05,4262.8,4262.7,1.09937]
[1760385779248,0.7304,4263.8,4263.7,0.42177]
[1760385779557,0.7304,4263.6,4263.2,1.05456]
[1760385779748,0.7304,4263.4,4263.3,0.42181]
[1760385780058,3.96665715,4263.4,4263.3,1.09931]
[1760385780249,3.96665715,4263.4,4263.3,0.42181]
[1760385780848,3.23625715,4263.4,4263.3,1.09931]
[1760385781058,3.96665715,4263.4,4263.3,1.09931]
[1760385781655,3.72565715,4263.4,4263.3,1.09931]
[1760385781954,3.96665715,4263.4,4263.3,1.09931]
[1760385782346,2.99525715,4263.4,4263.3,1.09931]
[1760385782549,0.00248309,4263.6,4263.5,1.37669]
[1760385782849,0.24348309,4263.6,4263.5,1.37669]
[1760385783243,0.00248309,4263.6,4263.5,1.37669]
[1760385783449,0.24348309,4263.6,4263.5,1.37669]
[1760385783650,0.00248309,4263.6,4263.5,1.37669]
[1760385783852,0.24348309,4263.6,4263.5,1.37669]
[1760385784151,0.00248309,4263.6,4263.5,1.37669]
[1760385784360,3.09e-06,4263.6,4263.5,1.37669]
[1760385784748,3.9382,4265.0,4264.9,0.42166]
[1760385784951,4.70413811,4265.0,4264.9,0.42166]
[1760385785160,7.49222349,4265.0,4264.9,0.42166]
[1760385785351,4.52542349,4265.0,4264.9,0.42166]
[1760385785552,4.52542349,4265.0,4264.9,1.09916]
[1760385785752,4.5271446,4265.0,4264.9,0.42332742]
[1760385787848,7.2762446,4265.0,4263.8,3.2078]
[1760385788055,0.7304,4264.2,4264.1,0.42173]
[1760385788355,4.06407874,4264.2,4264.1,0.42173]
[1760385788559,0.7304,4264.1,4264.0,0.42174]
[1760385788954,3.82407874,4264.1,4264.0,0.42358451]
[1760385789263,3.82407874,4264.1,4264.0,1.10108451]
[1760385789663,4.06407874,4264.1,4264.0,1.10108451]
[1760385790254,4.06407874,4264.1,4264.0,0.00184451]
[1760385790560,3.82407874,4264.1,4264.0,0.00184451]
[1760385790762,4.06407874,4264.1,4264.0,0.00184451]
[1760385791152,3.82407874,4264.1,4264.0,0.00184451]
[1760385791363,3.33367874,4264.1,4264.0,3.88714451]
[1760385791560,3.09367874,4264.1,4264.0,3.88714451]
[1760385791762,4.21162111,4265.0,4264.9,0.42166]
[1760385792057,7.72475882,4265.0,4264.9,0.42166]
[1760385792256,7.20274139,4265.0,4264.9,0.42166]
[1760385792857,3.02454139,4265.0,4264.9,1.09916]
[1760385793059,3.26454139,4265.0,4264.9,1.09916]
[1760385793262,3.02454139,4265.0,4264.9,1.09916]
[1760385793458,3.26454139,4265.0,4264.9,1.09916]
[1760385794660,3.99494139,4265.0,4264.9,1.09916]
[1760385795863,0.00172111,4265.0,4264.9,1.09916]
[1760385797861,3.2078,4266.5,4266.4,0.42151]
[1760385798065,0.6731,4266.8,4266.7,0.42148]
[1760385798258,3.8809,4267.0,4266.9,0.42146]
[1760385798566,4.02259814,4267.0,4266.9,0.42146]
[1760385798964,3.35179034,4267.0,4266.9,1.14426]
[1760385799266,4.02489034,4267.0,4266.9,0.42146]
[1760385799768,3.35179034,4267.0,4266.9,1.14426]
[1760385800471,4.02489034,4267.0,4266.9,1.14426]
[1760385800764,4.02489034,4267.0,4266.6,3.2078]
[1760385800765,3.61859034,4267.0,4266.8,0.42147]
[1760385800964,3.61859034,4267.0,4266.6,3.2078]
[1760385800965,3.61859034,4267.0,4266.6,3.62928]
[1760385801165,0.6731,4266.8,4266.6,3.62928]
[1760385801365,0.9131,4266.7,4266.6,3.62928]
[1760385801666,0.9131,4266.7,4266.6,3.2078]
[1760385801667,3.9555844,4266.7,4266.6,3.2078]
[1760385801874,0.6731,4266.4,4266.0,0.42155]
[1760385802067,0.6731,4266.2,4266.1,0.42153]
[1760385802372,0.6731,4266.0,4265.9,3.62935]
[1760385802673,4.28367521,4266.0,4265.9,3.62935]
[1760385803366,0.6731,4265.9,4265.5,0.42159]
[1760385803564,0.6731,4265.5,4265.4,0.4216]
[1760385803765,0.9131,4265.5,4265.4,0.4216]
[1760385803960,3.90315558,4265.5,4265.4,0.4216]
[1760385804174,3.90315558,4265.5,4265.4,1.1444]
[1760385804873,3.90315558,4265.5,4265.4,0.4216]
[1760385805267,0.6731,4266.0,4265.9,0.42156]
[1760385805466,0.9131,4266.0,4265.9,0.42156]
[1760385805667,3.98714565,4266.0,4265.9,0.42156]
[1760385805870,3.74714565,4266.0,4265.9,0.42156]
[1760385806070,3.98714565,4266.0,4265.9,0.42156]
[1760385806671,4.25394565,4266.0,4265.9,0.42156]
[1760385806974,0.42157,4265.8,4265.5,0.42159]
[1760385807173,0.42157,4265.8,4265.6,0.42158]
[1760385807174,0.9131,4265.7,4265.6,0.42158]
[1760385807362,3.99974997,4265.7,4265.6,1.14438]
[1760385810370,3.99974997,4265.7,4265.6,0.42158]
[1760385810872,4.92604997,4265.7,4265.6,0.42158]
[1760385811067,4.92604997,4265.7,4265.6,0.88368]
[1760385811271,4.92604997,4265.7,4265.6,1.14438]
[1760385811574,5.22872,4266.3,4266.2,0.42153]
[1760385811774,2.54446557,4266.3,4266.2,0.42153]
[1760385811968,5.7833909,4266.3,4266.2,0.42153]
[1760385812370,5.5433909,4266.3,4266.2,0.42153]
[1760385812672,5.7833909,4266.3,4266.2,0.42153]
[1760385812871,5.5433909,4266.3,4266.2,0.42153]
[1760385813170,5.7833909,4266.3,4266.2,0.42153]
[1760385813769,4.6887709,4266.3,4266.2,2.07743]
[1760385813967,5.3618709,4266.3,4266.2,0.42153]
[1760385814767,5.3618709,4266.3,4266.2,1.14433]
[1760385815677,1.34786,4265.9,4265.8,3.2078]
[1760385815966,0.9263,4265.4,4265.3,5.28532]
[1760385817376,4.66349641,4265.4,4265.3,3.62942]
[1760385817673,4.66349641,4265.4,4265.3,4.81432]
[1760385818372,4.21579641,4265.4,4265.3,5.28532]
[1760385818572,0.4786,4266.8,4266.7,1.60638]
[1760385818875,0.52419118,4266.8,4266.7,4.35208]
[1760385819475,0.24,4266.8,4266.7,4.35208]
[1760385821177,0.76614743,4266.8,4266.7,4.35208]
[1760385821374,0.52614743,4266.8,4266.7,4.35208]
[1760385822876,0.0022922,4267.0,4266.9,0.42146]
[1760385823077,0.52853759,4267.0,4266.9,1.14426]
[1760385823375,1.00713759,4267.0,4266.9,1.60636]
[1760385823776,1.45483759,4267.0,4266.9,1.14426]
[1760385823976,1.90763759,4267.0,4266.9,1.14426]
[1760385824366,1.45483759,4267.0,4266.9,1.14426]
[1760385824771,1.69483759,4267.0,4266.9,1.14426]
[1760385824976,0.42152,4266.4,4266.2,3.9306]
[1760385825182,1.3609,4266.3,4266.2,4.35212]
[1760385825477,4.39195195,4266.3,4266.2,3.62932]
[1760385825678,4.91853982,4266.3,4266.2,3.2078]
[1760385826373,0.8979,4265.7,4265.6,4.78998]
[1760385826671,0.4346,4265.1,4265.0,3.2078]
[1760385826874,1.20132045,4265.1,4264.8,0.42166]
[1760385827179,0.4346,4264.8,4264.7,0.42167]
[1760385827474,3.42806941,4264.8,4264.7,0.42167]
[1760385828181,0.4393,4264.7,4264.5,3.62949]
[1760385828481,3.48869452,4264.6,4264.5,4.32129]
[1760385828681,3.04939452,4264.6,4264.5,4.58439]
[1760385831885,3.57585528,4264.6,4264.5,4.58439]
[1760385832082,3.57585528,4264.6,4264.5,4.1627]
[1760385832283,0.4393,4264.5,4264.0,4.16124451]
[1760385832483,3.04939452,4264.6,4264.0,4.16124451]
[1760385832484,0.24,4264.4,4264.3,0.6918]
[1760385832683,3.03317045,4264.4,4264.3,0.6918]
[1760385832987,0.24,4264.4,4264.3,0.6918]
[1760385833485,0.24,4264.5,4264.4,1.11351]
[1760385834387,0.42171,4264.4,4264.1,0.6918]
[1760385834581,3.09882279,4264.5,4264.4,0.42171]
[1760385834778,4.70118,4265.2,4264.5,0.9549]
[1760385834987,0.76603196,4265.1,4264.6,0.6918]
[1760385835184,0.42168,4264.7,4264.6,0.6918]
[1760385835390,0.4393,4264.6,4264.5,3.2078]
[1760385835790,3.54099743,4264.6,4264.5,3.2078]
[1760385837288,3.54099743,4264.6,4264.0,0.95344451]
[1760385837289,3.54099743,4264.6,4264.0,4.58298451]
[1760385837992,0.42173,4264.1,4264.0,4.16124451]
[1760385838398,1.35593,4264.1,4264.0,4.16124451]
[1760385838594,1.79523,4264.1,4264.0,4.16124451]
[1760385839596,4.86905897,4264.1,4263.6,0.6918]
[1760385839802,1.79528,4263.6,4263.5,3.2078]
[1760385840093,2.03528,4263.6,4263.5,3.2078]
[1760385840294,2.03528,4263.6,4263.5,5.49219]
[1760385840295,3.07382897,4263.6,4263.5,5.49219]
[1760385840596,0.4217,4264.5,4264.4,0.42171]
[1760385840899,3.72200867,4264.5,4264.4,2.02121]
[1760385841397,0.00298359,4264.5,4264.4,2.26121]
[1760385842604,3.2078,4265.9,4265.0,0.2631]
[1760385842898,3.4478,4265.9,4265.8,0.6918]
[1760385843095,3.4478,4266.4,4266.1,0.6918]
[1760385843296,3.4478,4266.4,4266.0,0.2631]
[1760385843496,6.47976772,4266.4,4266.1,0.6918]
[1760385843798,6.48160459,4266.4,4266.1,0.6918]
[1760385844001,6.48160459,4266.4,4266.2,0.6918]
[1760385844002,6.24160459,4266.4,4266.2,0.6918]
[1760385844297,6.48160459,4266.4,4266.0,0.2631]
[1760385844496,3.71310459,4266.4,4266.0,0.2631]
[1760385844804,3.71310459,4266.4,4266.1,0.6918]
[1760385845197,0.42154,4266.1,4266.0,0.2631]
[1760385845798,0.42154,4266.1,4265.7,3.2078]
[1760385845799,0.42159,4265.6,4265.5,0.9549]
[1760385845997,0.42164,4265.1,4265.0,0.9549]
[1760385846798,0.4216,4265.5,4265.1,0.42163]
[1760385847000,3.01181004,4265.6,4265.5,0.9549]
[1760385847301,0.44113687,4266.4,4265.6,0.6918]
[1760385847302,0.42158,4265.7,4265.6,0.6918]
[1760385847604,3.49133044,4265.7,4265.6,0.6918]
[1760385847906,0.42158,4265.7,4265.6,0.6918]
[1760385848102,3.30975044,4265.7,4265.0,3.4709]
[1760385848306,3.74905044,4265.7,4265.1,0.6918]
[1760385848494,0.42162,4265.3,4265.2,1.11342]
[1760385849398,0.42162,4265.3,4265.2,0.6918]
[1760385851007,0.88002,4265.3,4265.2,1.5995]
[1760385851206,0.42162,4265.3,4265.2,1.5995]
[1760385851802,0.42158,4265.7,4265.6,0.42159]
[1760385852102,1.11993,4266.2,4266.1,0.4671]
[1760385852306,1.11993,4266.2,4266.1,1.1589]
[1760385852507,4.1267001,4266.2,4266.1,1.1589]
[1760385852704,4.1267001,4266.2,4266.1,1.5995]
[1760385853210,4.6025001,4266.2,4266.1,1.5995]
[1760385859813,0.89009,4265.6,4265.5,0.2631]
[1760385860013,1.75299,4265.6,4265.5,0.9091]
[1760385860316,1.928,4265.5,4265.4,3.2078]
[1760385860607,4.09789,4265.6,4265.5,1.3456]
[1760385860808,1.57509,4265.6,4265.5,1.3456]
[1760385861014,4.57815985,4265.6,4265.5,1.3456]
[1760385861312,0.4179,4265.9,4265.5,1.3456]
[1760385861313,0.4685,4265.9,4265.8,1.5494]
[1760385861502,1.1535,4265.9,4265.8,1.5494]
[1760385866016,1.1535,4265.9,4265.8,1.0883]
[1760385866916,1.75297,4265.8,4265.7,3.2078]
[1760385867616,1.33507,4265.8,4265.7,4.71768]
[1760385868315,1.33507,4265.8,4265.7,5.17878]
[1760385868912,0.4685,4266.2,4266.1,1.32494]
[1760385869114,0.00183687,4266.4,4266.0,0.2573]
[1760385869115,0.42152,4266.3,4266.2,1.97093]
[1760385869311,0.42334687,4266.4,4266.3,1.97092]
[1760385869619,0.9528834,4266.4,4266.3,1.97092]
[1760385869813,2.2842834,4266.4,4266.3,0.42152]
[1760385870008,1.8663834,4266.4,4266.3,1.50982]
[1760385870518,0.9998734,4266.4,4266.3,1.97092]
[1760385871219,1.4213834,4266.4,4266.3,1.97092]
[1760385871820,1.8663834,4266.4,4266.3,1.97092]
[1760385872115,1.8663834,4266.4,4266.3,1.50982]
[1760385872508,1.4213834,4266.4,4266.3,1.97092]
[1760385873014,1.8663834,4266.4,4266.3,1.50982]
[1760385875019,1.8663834,4266.4,4266.3,1.97092]
[1760385876018,1.8663834,4266.4,4266.3,0.646]
[1760385876323,1.33502,4266.3,4266.2,3.2078]
[1760385876522,1.86455653,4266.3,4266.2,3.8538]
[1760385877022,1.86455653,4266.3,4266.2,4.2961]
[1760385877616,1.33506,4265.9,4265.8,0.646]
[1760385877913,1.33506,4265.9,4265.0,1.31142]
[1760385877914,0.4179,4265.7,4265.2,3.62942]
[1760385878118,4.58044274,4265.9,4265.2,3.62942]
[1760385878119,1.86136309,4265.6,4265.5,0.9033]
[1760385878323,4.74998621,4265.6,4265.5,0.9033]
[1760385878722,4.33208621,4265.6,4265.5,1.3456]
[1760385879123,4.33208621,4265.6,4265.2,3.4478]
[1760385879124,0.42162,4265.3,4265.2,3.62943]
[1760385879324,1.75302,4265.3,4265.2,3.8538]
[1760385880121,1.75302,4265.3,4265.2,4.27543]
[1760385881013,0.42165,4265.0,4264.9,0.24]
[1760385881219,1.75305,4265.0,4264.9,0.24]
[1760385881621,1.33516,4264.9,4264.7,3.62947]
[1760385881925,1.75306,4264.9,4264.8,0.646]
[1760385882121,4.32073994,4264.8,4264.7,3.2078]
[1760385882524,0.4685,4264.8,4264.7,4.7572]
[1760385882825,0.4685,4265.2,4265.1,1.97104]
[1760385883019,1.24615837,4265.2,4265.1,1.97104]
[1760385883217,5.15514787,4265.2,4265.1,0.646]
[1760385883424,0.9135,4264.8,4264.7,4.5361]
[1760385883617,0.9135,4264.8,4264.7,3.8538]
[1760385883823,1.3314,4264.8,4264.7,3.8538]
[1760385884122,4.44323773,4264.8,4264.4,0.646]
[1760385884321,0.42172,4264.3,4264.2,4.27552]
[1760385884517,0.9135,4264.3,4264.2,4.71782]
[1760385885117,0.9135,4264.3,4264.2,5.17892]
[1760385885826,0.4685,4264.3,4264.2,5.17892]
[1760385886133,0.24,4264.6,4264.2,5.17892]
[1760385886134,0.42166,4264.9,4264.5,1.7727]
[1760385886320,0.3943,4265.3,4264.5,1.7727]
[1760385886321,0.85092,4265.3,4265.2,0.8841]
[1760385886630,4.38566978,4265.3,4265.2,1.5243]
[1760385886821,4.84546978,4265.3,4265.2,1.5243]
[1760385887222,4.30834893,4265.3,4265.2,1.0973]
[1760385887621,4.30834893,4265.3,4265.2,4.3051]
[1760385888924,2.99762893,4265.3,4265.2,4.7621]
[1760385889125,0.42159,4265.6,4265.5,2.2803]
[1760385889930,0.88599,4265.6,4265.5,1.8587]
[1760385890233,1.34639,4265.6,4265.5,1.8587]
[1760385891922,1.34639,4265.6,4265.2,3.2078]
[1760385891923,1.73842,4265.3,4265.2,3.2078]
[1760385892430,1.34644,4265.1,4265.0,0.9396]
[1760385892633,1.73844,4265.1,4265.0,0.9396]
[1760385893019,1.34644,4265.1,4265.0,1.81115]
[1760385893332,0.88603,4265.2,4265.1,2.01444]
[1760385893638,4.37851362,4265.2,4265.1,2.01444]
[1760385895129,4.37851362,4265.2,4265.1,1.55744]
[1760385895328,4.77051362,4265.2,4265.1,1.10754]
[1760385895633,1.73847,4264.8,4264.7,3.2078]
[1760385895832,1.97847,4264.8,4264.7,3.2078]
[1760385896032,5.53212519,4264.8,4264.7,3.2078]
[1760385896233,4.9949819,4264.8,4264.7,3.2078]
[1760385897539,1.34652,4264.3,4264.2,4.3436]
[1760385897835,1.34652,4264.3,4264.2,4.76533]
[1760385898932,0.9248,4264.3,4264.2,4.76533]
[1760385899439,4.76335363,4264.3,4264.2,3.8937]
[1760385899737,4.37135363,4264.3,4264.2,4.76533]
[1760385900536,3.94963363,4264.3,4264.2,5.22233]
[1760385901236,0.24,4264.5,4264.4,0.42171]
[1760385901440,0.24,4264.5,4264.4,2.01451]
[1760385901838,0.7044,4264.5,4264.4,2.01451]
[1760385902339,1.73852,4264.3,4264.2,3.2078]
[1760385902639,4.77678061,4264.3,4264.2,3.2078]
[1760385903040,3.96306061,4264.3,4264.2,4.76533]
[1760385903246,0.9248,4264.3,4264.2,5.22233]
[1760385903542,0.7044,4264.5,4264.4,2.01451]
[1760385904637,1.9785,4264.5,4264.4,0.6859]
[1760385905341,1.9785,4264.5,4264.4,0.42171]
[1760385905741,1.9785,4264.5,4264.2,3.2078]
[1760385905742,1.73852,4264.3,4264.2,3.2078]
[1760385906245,4.71812676,4264.3,4264.2,3.2078]
[1760385906837,0.4604,4263.8,4263.7,3.2078]
[1760385907042,1.73856,4263.8,4263.7,3.2078]
[1760385907234,4.84414463,4263.8,4263.7,3.2078]
[1760385907631,4.84414463,4263.8,4263.5,0.00263895]
[1760385907632,1.34658,4263.6,4263.5,0.00263895]
[1760385907842,2.51596532,4263.6,4263.5,0.00263895]
[1760385908143,5.06171037,4263.6,4263.5,0.00263895]
[1760385909538,5.59868853,4263.6,4263.5,0.00263895]
[1760385910133,8.80648853,4263.6,4263.5,0.00263895]
[1760385912446,8.80648853,4263.6,4263.5,0.00263895]
[1760385913340,8.56648853,4263.6,4263.5,0.00263895]
[1760385913542,8.80648853,4263.6,4263.5,0.00263895]
[1760385915344,8.56648853,4263.6,4263.5,0.00263895]
[1760385915543,8.80648853,4263.6,4263.5,0.00263895]
[1760385916753,8.56648853,4263.6,4263.5,0.00263895]
[1760385916956,8.80648853,4263.6,4263.5,0.00263895]
[1760385920252,0.79707,4262.7,4262.6,3.2078]
[1760385920460,0.8103,4262.2,4262.1,3.2078]
[1760385920658,1.91202,4262.2,4262.1,3.8567]
[1760385920853,0.8749,4261.9,4261.6,3.2078]
[1760385921060,1.67206,4261.8,4261.7,0.6489]
[1760385921252,4.77875779,4261.8,4261.7,0.00277729]
[1760385925059,1.2473,4260.7,4260.6,3.8567]
[1760385925263,1.2473,4260.7,4260.6,4.2938]
[1760385925860,3.48405234,4260.7,4260.2,0.6489]
[1760385926159,3.48405234,4260.7,4260.6,0.00283317]
[1760385926160,4.35895234,4260.7,4260.6,0.00283317]
[1760385926363,5.02102234,4260.7,4260.6,0.00283317]
[1760385927564,0.42222,4259.2,4259.1,3.2078]
[1760385927865,1.29716,4258.8,4258.7,0.6489]
[1760385928060,1.53716,4258.8,4258.6,3.2078]
[1760385928257,1.29722,4258.2,4258.1,3.8567]
[1760385928456,1.29901951,4258.2,4258.1,3.85919586]
[1760385928956,1.67141951,4258.2,4258.1,3.85919586]
[1760385929160,1.29901951,4258.2,4258.1,3.85919586]
[1760385929663,0.00179951,4258.2,4258.1,4.74209586]
[1760385930461,7.48996672,4258.2,4258.1,0.00249586]
[1760385930661,3.90976672,4258.2,4258.1,0.65139586]
[1760385930862,3.90976672,4258.2,4258.1,1.08849586]
[1760385930863,4.14976672,4258.2,4258.1,1.08849586]
[1760385931764,4.14976672,4258.2,4258.1,4.74209586]
[1760385931765,0.00179951,4258.2,4258.1,4.74209586]
[1760385931964,0.8749,4259.3,4259.2,1.50822]
[1760385932164,1.1149,4259.3,4259.2,1.5318]
[1760385932867,1.11761608,4259.3,4259.2,1.086]
[1760385933362,0.67781608,4259.3,4259.2,1.5318]
[1760385933564,0.24271608,4259.3,4259.2,1.5318]
[1760385934066,0.67781608,4259.3,4259.2,1.5318]
[1760385934367,0.00271608,4259.3,4259.2,1.5318]
[1760385934757,0.8749,4260.3,4260.2,1.95392]
[1760385934957,0.4351,4260.5,4260.4,0.8592]
[1760385935159,3.05746227,4260.6,4260.5,0.2655]
[1760385935468,0.14661007,4261.7,4260.7,0.6489]
[1760385935469,3.05746227,4260.8,4260.7,0.6489]
[1760385935670,0.56858007,4261.7,4261.6,0.6489]
[1760385935964,3.82576156,4261.7,4261.6,0.0021562]
[1760385936269,3.03139156,4261.7,4261.6,0.6510562]
[1760385936670,0.00237768,4261.7,4261.6,0.6510562]
[1760385937066,0.00237768,4261.7,4261.6,1.0730362]
[1760385937268,0.00237768,4261.7,4261.6,0.0021562]
[1760385937269,3.47781158,4261.7,4261.6,0.0021562]
[1760385938176,3.71781158,4261.7,4261.6,0.0021562]
[1760385940772,4.59271158,4261.7,4261.6,0.6510562]
[1760385941076,4.59271158,4261.7,4261.6,0.0021562]
[1760385942668,0.3521,4260.9,4260.7,0.6345]
[1760385942869,1.05506,4261.3,4260.4,3.2078]
[1760385942870,0.77418,4260.6,4260.4,3.2078]